fUST/lending_fUST_20250715
["ID","MTS","AMOUNT","RATE_DAILY","PERIOD"]
[372216530,1752552662414,-466.15166201,0.00022465,3]
[372216531,1752552662423,-469.61512153,0.00022465,3]
[372216532,1752552662432,-406.77310096,0.00022465,3]
[372216533,1752552662441,-460.0,0.00022465,3]
[372216534,1752552662450,-460.0,0.00022465,3]
[372216535,1752552662459,-460.0,0.00022465,3]
[372216536,1752552662468,-467.3659585,0.00022465,3]
[372216538,1752552662478,-460.0,0.00022465,3]
[372216540,1752552662487,-460.0,0.00022465,3]
[372216542,1752552662497,-460.0,0.00022465,3]
[372216544,1752552662506,-777.72,0.00022465,3]
[372216546,1752552662516,-460.0,0.00022465,3]
[372216548,1752552662525,-460.0,0.00022465,3]
[372216550,1752552662535,-548.81322495,0.00022465,3]
[372216552,1752552662544,-460.0,0.00022465,3]
[372216554,1752552662553,-460.0,0.00022465,3]
[372216556,1752552662563,-791.55,0.00022465,3]
[372216558,1752552662571,-460.0,0.00022465,3]
[372216560,1752552662580,-460.0,0.00022465,3]
[372216562,1752552662589,-209.42030284,0.00022465,3]
[372216563,1752552662599,-460.0,0.00022465,3]
[372216575,1752552662699,-468.28256349,0.00022465,3]
[372216577,1752552662710,-460.0,0.00022465,3]
[372216579,1752552662719,-460.0,0.00022465,3]
[372216581,1752552662729,-460.0,0.00022465,3]
[372216583,1752552662738,-460.0,0.00022465,3]
[372216585,1752552662747,-460.0,0.00022465,3]
[372216587,1752552662756,-519.47,0.00022465,3]
[372216589,1752552662767,-460.0,0.00022465,3]
[372216591,1752552662777,-4953.31,0.00022465,3]
[372216593,1752552662786,-775.92,0.00022465,3]
[372216595,1752552662795,-460.0,0.00022465,3]
[372216597,1752552662805,-465.40802677,0.00022465,3]
[372216599,1752552662814,-1271.11,0.00022465,3]
[372216601,1752552662823,-467.11744404,0.00022465,3]
[372216603,1752552662832,-460.0,0.00022465,3]
[372216605,1752552662842,-1235.2,0.00022465,3]
[372216607,1752552662851,-726.27,0.00022465,3]
[372216609,1752552662862,-671.4,0.00022465,3]
[372216611,1752552662871,-799.6,0.00022465,3]
[372216613,1752552662880,-2030.22,0.00022465,3]
[372216614,1752552662889,-460.0,0.00022465,3]
[372216616,1752552662909,-460.0,0.00022465,3]
[372216618,1752552662918,-460.0,0.00022465,3]
[372216621,1752552662928,-714.23,0.00022465,3]
[372216623,1752552662938,-460.0,0.00022465,3]
[372216625,1752552662948,-1996.77,0.00022465,3]
[372216627,1752552662958,-460.0,0.00022465,3]
[372216629,1752552662967,-460.0,0.00022465,3]
[372216631,1752552662977,-577.90903208,0.00022465,3]
[372216632,1752552662987,-460.0,0.00022465,3]
[372216634,1752552662996,-460.0,0.00022465,3]
[372216636,1752552663006,-800.07,0.00022465,3]
[372216638,1752552663015,-3111.48,0.00022465,3]
[372216640,1752552663025,-460.0,0.00022465,3]
[372216642,1752552663035,-1667.58,0.00022465,3]
[372216644,1752552663044,-647.74,0.00022465,3]
[372216646,1752552663054,-460.0,0.00022465,3]
[372216648,1752552663064,-590.38328388,0.00022465,3]
[372216650,1752552663074,-464.77632749,0.00022465,3]
[372216652,1752552663083,-460.0,0.00022465,3]
[372216654,1752552663094,-365.13043766,0.00022465,3]
[372216656,1752552663103,-460.0,0.00022465,3]
[372216658,1752552663116,-461.43754657,0.00022465,3]
[372216661,1752552663126,-460.0,0.00022465,3]
[372216662,1752552663136,-460.0,0.00022465,3]
[372216665,1752552663146,-697.18,0.00022465,3]
[372216666,1752552663156,-468.63039268,0.00022465,3]
[372216669,1752552663166,-971.98,0.00022465,3]
[372216670,1752552663175,-527.96,0.00022465,3]
[372216672,1752552663185,-460.0,0.00022465,3]
[372216674,1752552663194,-460.0,0.00022465,3]
[372216676,1752552663209,-532.76,0.00022465,3]
[372216678,1752552663218,-460.0,0.00022465,3]
[372216680,1752552663227,-460.0,0.00022465,3]
[372216682,1752552663237,-567.58,0.00022465,3]
[372216684,1752552663246,-2796.67,0.00022465,3]
[372216686,1752552663256,-460.0,0.00022465,3]
[372216688,1752552663266,-597.24,0.00022465,3]
[372216690,1752552663276,-460.0,0.00022465,3]
[372216692,1752552663285,-460.0,0.00022465,3]
[372216694,1752552663295,-460.0,0.00022465,3]
[372216696,1752552663305,-550.6,0.00022465,3]
[372216698,1752552663315,-1302.93,0.00022465,3]
[372216700,1752552663325,-460.0,0.00022465,3]
[372216702,1752552663335,-860.81,0.00022465,3]
[372216704,1752552663345,-460.0,0.00022465,3]
[372216707,1752552663355,-926.29,0.00022465,3]
[372216709,1752552663368,-460.0,0.00022465,3]
[372216710,1752552663378,-3032.76,0.00022465,3]
[372216713,1752552663389,-460.0,0.00022465,3]
[372216715,1752552663399,-471.52,0.00022465,3]
[372216717,1752552663410,-601.9,0.00022465,3]
[372216719,1752552663420,-2582.26,0.00022465,3]
[372216721,1752552663430,-460.0,0.00022465,3]
[372216722,1752552663440,-460.0,0.00022465,3]
[372216725,1752552663450,-1525.3,0.00022465,3]
[372216727,1752552663460,-460.0,0.00022465,3]
[372216729,1752552663470,-460.0,0.00022465,3]
[372216731,1752552663480,-460.0,0.00022465,3]
[372216732,1752552663489,-460.0,0.00022465,3]
[372216735,1752552663500,-466.73409255,0.00022465,3]
[372216737,1752552663510,-1036.34,0.00022465,3]
[372216739,1752552663519,-2092.22,0.00022465,3]
[372216741,1752552663529,-460.0,0.00022465,3]
[372216742,1752552663539,-460.0,0.00022465,3]
[372216744,1752552663549,-460.0,0.00022465,3]
[372216746,1752552663560,-4312.82,0.00022465,3]
[372216748,1752552663570,-414.35973933,0.00022465,3]
[372216751,1752552663582,-777.48,0.00022465,3]
[372216753,1752552663592,-460.0,0.00022465,3]
[372216755,1752552663602,-637.13,0.00022465,3]
[372216756,1752552663614,-703.39,0.00022465,3]
[372216758,1752552663625,-460.0,0.00022465,3]
[372216760,1752552663637,-4816.4,0.00022465,3]
[372216762,1752552663647,-415.8619528,0.00022465,3]
[372216764,1752552663657,-460.0,0.00022465,3]
[372216766,1752552663668,-460.0,0.00022465,3]
[372216769,1752552663678,-1559.52,0.00022465,3]
[372216770,1752552663687,-688.86,0.00022465,3]
[372216772,1752552663697,-1092.22,0.00022465,3]
[372216774,1752552663710,-292.56739393,0.00022465,3]
[372216776,1752552663720,-1316.19,0.00022465,3]
[372216778,1752552663731,-460.0,0.00022465,3]
[372216780,1752552663741,-460.0,0.00022465,3]
[372216782,1752552663751,-511.09,0.00022465,3]
[372216785,1752552663761,-218.0,0.00022466,7]
[372216787,1752552663772,-168.0,0.0002247,2]
[372216789,1752552663782,-657.02,0.00022481,2]
[372216791,1752552663792,-200083.599433,0.0002249,7]
[372216793,1752552663801,-2714.23219275,0.00022493,2]
[372216795,1752552663811,-19751.15,0.000225,7]
[372216797,1752552663821,-2147.35,0.000225,2]
[372216798,1752552663830,-500.0,0.000225,3]
[372216800,1752552663840,-160.0,0.000225,2]
[372216802,1752552663850,-1000.0,0.00022521,2]
[372216804,1752552663862,-433.24364669,0.00022521,2]
[372216806,1752552663871,-1000.0,0.00022521,2]
[372216808,1752552663882,-1000.0,0.00022521,2]
[372216810,1752552663891,-507.6974084,0.00022521,2]
[372216812,1752552663901,-1000.0,0.00022521,2]
[372216814,1752552663911,-682.60366981,0.00022548,4]
[372216816,1752552663920,-523.31,0.0002255,3]
[372216818,1752552663930,-657.02,0.00022581,7]
[372216820,1752552663939,-815.77640485,0.0002259,7]
[372216822,1752552663949,-160.0,0.00022595,4]
[372216824,1752552663959,-187.21407206,0.00022595,5]
[372216826,1752552663968,-500.0,0.000226,3]
[372216828,1752552663979,-800.0,0.00022613,2]
[372216830,1752552663989,-800.0,0.00022637,2]
[372216832,1752552663998,-2986.95603658,0.00022639,2]
[372216834,1752552664008,-800.0,0.00022643,2]
[372216836,1752552664018,-523.31,0.0002265,4]
[372216838,1752552664028,-657.02466668,0.00022681,4]
[372216840,1752552664037,-384.48140027,0.00022685,2]
[372216842,1752552664046,-210.8,0.00022692,6]
[372216844,1752552664055,-500.0,0.000227,3]
[372216846,1752552664064,-800.0,0.00022706,2]
[372216848,1752552664073,-1000.0,0.00022721,2]
[372216850,1752552664083,-1000.0,0.00022721,2]
[372216852,1752552664092,-1000.0,0.00022721,2]
[372216854,1752552664101,-1000.0,0.00022721,2]
[372216856,1752552664111,-597.2090234,0.00022721,2]
[372216857,1752552664121,-815.77640485,0.00022728,7]
[372216859,1752552664130,-800.0,0.00022728,2]
[372216861,1752552664140,-800.0,0.00022728,2]
[372216863,1752552664150,-396.5,0.00022734,2]
[372216865,1752552664160,-800.0,0.00022736,2]
[372216867,1752552664169,-460.0,0.00022739,3]
[372216869,1752552664178,-460.0,0.00022739,3]
[372216871,1752552664188,-478.43,0.00022739,3]
[372216873,1752552664197,-460.0,0.00022739,3]
[372216875,1752552664206,-460.0,0.00022739,3]
[372216877,1752552664216,-469.59678899,0.00022739,3]
[372216879,1752552664225,-533.52529996,0.00022739,3]
[372216881,1752552664236,-517.46,0.00022739,3]
[372216883,1752552664245,-463.61936132,0.00022739,3]
[372216885,1752552664255,-460.0,0.00022739,3]
[372216887,1752552664264,-460.0,0.00022739,3]
[372216889,1752552664273,-460.0,0.00022739,3]
[372216891,1752552664284,-460.0,0.00022739,3]
[372216893,1752552664294,-452.64071847,0.00022739,3]
[372216895,1752552664304,-576.57,0.00022739,3]
[372216897,1752552664313,-460.0,0.00022739,3]
[372216899,1752552664322,-460.0,0.00022739,3]
[372216901,1752552664331,-460.0,0.00022739,3]
[372216903,1752552664341,-460.0,0.00022739,3]
[372216905,1752552664350,-460.0,0.00022739,3]
[372216906,1752552664361,-460.0,0.00022739,3]
[372216908,1752552664371,-460.0,0.00022739,3]
[372216911,1752552664380,-460.0,0.00022739,3]
[372216912,1752552664391,-460.0,0.00022739,3]
[372216914,1752552664400,-460.0,0.00022739,3]
[372216916,1752552664409,-465.99628386,0.00022739,3]
[372216918,1752552664419,-306.67290991,0.00022739,3]
[372216920,1752552664428,-460.0,0.00022739,3]
[372216922,1752552664439,-460.0,0.00022739,3]
[372216924,1752552664448,-460.0,0.00022739,3]
[372216926,1752552664457,-777.72,0.00022739,3]
[372216928,1752552664467,-460.0,0.00022739,3]
[372216930,1752552664476,-460.0,0.00022739,3]
[372216932,1752552664486,-460.0,0.00022739,3]
[372216934,1752552664495,-460.0,0.00022739,3]
[372216936,1752552664505,-791.55,0.00022739,3]
[372216938,1752552664515,-195.1347836,0.00022739,3]
[372216940,1752552664525,-460.0,0.00022739,3]
[372216942,1752552664535,-460.0,0.00022739,3]
[372216944,1752552664545,-460.0,0.00022739,3]
[372216946,1752552664555,-460.0,0.00022739,3]
[372216948,1752552664564,-460.0,0.00022739,3]
[372216949,1752552664573,-468.61167292,0.00022739,3]
[372216950,1752552664583,-460.0,0.00022739,3]
[372216951,1752552664592,-519.47,0.00022739,3]
[372216952,1752552664601,-460.0,0.00022739,3]
[372216953,1752552664615,-4953.31,0.00022739,3]
[372216954,1752552664627,-775.92,0.00022739,3]
[372216955,1752552664637,-460.0,0.00022739,3]
[372216956,1752552664734,-1271.11,0.00022739,3]
[372216957,1752552664744,-460.0,0.00022739,3]
[372216958,1752552664754,-1235.2,0.00022739,3]
[372216959,1752552664763,-726.27,0.00022739,3]
[372216960,1752552664773,-671.4,0.00022739,3]
[372216961,1752552664783,-799.6,0.00022739,3]
[372216962,1752552664792,-2030.22,0.00022739,3]
[372216963,1752552664802,-460.0,0.00022739,3]
[372216964,1752552664811,-460.0,0.00022739,3]
[372216965,1752552664821,-460.0,0.00022739,3]
[372216966,1752552664831,-714.23,0.00022739,3]
[372216967,1752552664840,-229.60171099,0.00022739,3]
[372216968,1752552664850,-1996.77,0.00022739,3]
[372216969,1752552664860,-460.0,0.00022739,3]
[372216970,1752552664870,-460.0,0.00022739,3]
[372216971,1752552664880,-307.60796854,0.00022739,3]
[372216972,1752552664889,-800.07,0.00022739,3]
[372216973,1752552664899,-3111.48,0.00022739,3]
[372216974,1752552664909,-460.0,0.00022739,3]
[372216975,1752552664918,-1667.58,0.00022739,3]
[372216976,1752552664928,-647.74,0.00022739,3]
[372216977,1752552664938,-460.0,0.00022739,3]
[372216978,1752552664948,-460.0,0.00022739,3]
[372216979,1752552664957,-460.0,0.00022739,3]
[372216980,1752552664967,-460.0,0.00022739,3]
[372216981,1752552664976,-460.0,0.00022739,3]
[372216982,1752552664985,-697.18,0.00022739,3]
[372216983,1752552664995,-971.98,0.00022739,3]
[372216984,1752552665004,-527.96,0.00022739,3]
[372216985,1752552665014,-460.0,0.00022739,3]
[372216986,1752552665023,-460.0,0.00022739,3]
[372216987,1752552665034,-532.76,0.00022739,3]
[372216988,1752552665044,-460.0,0.00022739,3]
[372216989,1752552665054,-339.90034245,0.00022739,3]
[372216990,1752552665063,-567.58,0.00022739,3]
[372216991,1752552665073,-2796.67,0.00022739,3]
[372216992,1752552665082,-460.0,0.00022739,3]
[372216993,1752552665091,-597.24,0.00022739,3]
[372216994,1752552665101,-460.0,0.00022739,3]
[372216995,1752552665113,-460.0,0.00022739,3]
[372216996,1752552665123,-468.93773957,0.00022739,3]
[372216997,1752552665132,-550.6,0.00022739,3]
[372216998,1752552665142,-1302.93,0.00022739,3]
[372216999,1752552665152,-460.0,0.00022739,3]
[372217000,1752552665161,-860.81,0.00022739,3]
[372217001,1752552665171,-253.76368068,0.00022739,3]
[372217002,1752552665182,-926.29,0.00022739,3]
[372217003,1752552665192,-460.0,0.00022739,3]
[372217004,1752552665201,-3032.76,0.00022739,3]
[372217005,1752552665210,-460.0,0.00022739,3]
[372217006,1752552665219,-471.52,0.00022739,3]
[372217007,1752552665228,-601.9,0.00022739,3]
[372217008,1752552665238,-2582.26,0.00022739,3]
[372217009,1752552665247,-470.00240161,0.00022739,3]
[372217010,1752552665256,-460.0,0.00022739,3]
[372217011,1752552665266,-1525.3,0.00022739,3]
[372217012,1752552665275,-460.0,0.00022739,3]
[372217013,1752552665284,-460.0,0.00022739,3]
[372217014,1752552665294,-460.0,0.00022739,3]
[372217015,1752552665303,-460.0,0.00022739,3]
[372217016,1752552665313,-1036.34,0.00022739,3]
[372217017,1752552665323,-2092.22,0.00022739,3]
[372217018,1752552665332,-460.0,0.00022739,3]
[372217019,1752552665341,-460.0,0.00022739,3]
[372217020,1752552665351,-460.0,0.00022739,3]
[372217021,1752552665364,-4312.82,0.00022739,3]
[372217022,1752552665373,-777.48,0.00022739,3]
[372217023,1752552665383,-460.0,0.00022739,3]
[372217024,1752552665393,-703.39,0.00022739,3]
[372217025,1752552665403,-637.13,0.00022739,3]
[372217026,1752552665412,-460.0,0.00022739,3]
[372217027,1752552665422,-4816.4,0.00022739,3]
[372217028,1752552665431,-460.0,0.00022739,3]
[372217029,1752552665441,-460.0,0.00022739,3]
[372217030,1752552665451,-1559.52,0.00022739,3]
[372217031,1752552665461,-688.86,0.00022739,3]
[372217032,1752552665470,-1092.22,0.00022739,3]
[372217033,1752552665480,-1316.19,0.00022739,3]
[372217034,1752552665490,-460.0,0.00022739,3]
[372217035,1752552665499,-460.0,0.00022739,3]
[372217036,1752552665509,-511.09,0.00022739,3]
[372217037,1752552665519,-523.31,0.0002275,7]
[372217038,1752552665528,-168.0,0.00022762,2]
[372217039,1752552665538,-800.0,0.00022768,2]
[372217040,1752552665547,-1038.9525527,0.0002277,2]
[372217041,1752552665557,-504.96459652,0.00022773,2]
[372217042,1752552665566,-150.2917092,0.00022773,2]
[372217043,1752552665575,-173.372,0.00022784,2]
[372217044,1752552665585,-800.0,0.00022799,2]
[372217045,1752552665593,-500.0,0.000228,3]
[372217046,1752552665603,-152.103888,0.00022829,15]
[372217047,1752552665616,-800.0,0.00022831,2]
[372217048,1752552665629,-152.103888,0.00022836,2]
[372217049,1752552665638,-800.0,0.00022838,2]
[372217050,1752552665648,-420.0,0.00022842,2]
[372217051,1752552665657,-523.31,0.0002285,6]
[372217052,1752552665666,-815.77640485,0.00022866,8]
[372217053,1752552665677,-2986.95603657,0.00022912,2]
[372217054,1752552665686,-523.31,0.0002295,2]
[372217055,1752552665695,-150.0,0.00022973,2]
[372217056,1752552665706,-500.0,0.00022973,2]
[372217057,1752552665716,-150.4896114,0.00022973,2]
[372217058,1752552665725,-2414.98,0.00022982,3]
[372217059,1752552665735,-160.0,0.00023,3]
[372217060,1752552665744,-160.0,0.00023,3]
[372217061,1752552665753,-216327.4217422,0.00023,7]
[372217062,1752552665762,-215.50840239,0.00023,3]
[372217063,1752552665771,-150.0,0.00023,5]
[372217064,1752552665781,-525.51022752,0.00023,3]
[372217065,1752552665791,-838.84061749,0.00023,3]
[372217066,1752552665800,-230.76969291,0.00023,3]
[372217067,1752552665809,-815.77640485,0.00023003,8]
[372217068,1752552665819,-197.16705223,0.00023011,2]
[372217069,1752552665828,-255.0,0.00023011,2]
[372217070,1752552665836,-205.05645519,0.00023011,2]
[372217071,1752552665845,-460.0,0.00023013,3]
[372217072,1752552665854,-460.0,0.00023013,3]
[372217073,1752552665867,-478.43,0.00023013,3]
[372217074,1752552665875,-460.0,0.00023013,3]
[372217075,1752552665885,-460.0,0.00023013,3]
[372217076,1752552665894,-517.46,0.00023013,3]
[372217077,1752552665903,-460.0,0.00023013,3]
[372217078,1752552665912,-460.0,0.00023013,3]
[372217079,1752552665921,-460.0,0.00023013,3]
[372217080,1752552665931,-576.57,0.00023013,3]
[372217081,1752552665940,-230.16307247,0.00023013,3]
[372217082,1752552665948,-460.0,0.00023013,3]
[372217083,1752552665958,-460.0,0.00023013,3]
[372217084,1752552665967,-467.50081996,0.00023013,3]
[372217085,1752552665977,-460.0,0.00023013,3]
[372217086,1752552665987,-460.0,0.00023013,3]
[372217087,1752552665996,-460.0,0.00023013,3]
[372217088,1752552666005,-460.0,0.00023013,3]
[372217089,1752552666014,-460.0,0.00023013,3]
[372217090,1752552666023,-460.0,0.00023013,3]
[372217091,1752552666033,-460.0,0.00023013,3]
[372217092,1752552666044,-460.0,0.00023013,3]
[372217093,1752552666053,-460.0,0.00023013,3]
[372217094,1752552666063,-777.72,0.00023013,3]
[372217095,1752552666072,-460.0,0.00023013,3]
[372217096,1752552666082,-550.56687725,0.00023013,3]
[372217097,1752552666091,-210.26760973,0.00023013,3]
[372217098,1752552666101,-460.0,0.00023013,3]
[372217099,1752552666114,-791.55,0.00023013,3]
[372217100,1752552666124,-460.0,0.00023013,3]
[372217101,1752552666134,-460.0,0.00023013,3]
[372217102,1752552666143,-460.0,0.00023013,3]
[372217103,1752552666153,-460.0,0.00023013,3]
[372217104,1752552666163,-460.0,0.00023013,3]
[372217105,1752552666172,-460.0,0.00023013,3]
[372217106,1752552666181,-519.47,0.00023013,3]
[372217107,1752552666191,-460.0,0.00023013,3]
[372217108,1752552666200,-4953.31,0.00023013,3]
[372217109,1752552666209,-775.92,0.00023013,3]
[372217110,1752552666219,-460.0,0.00023013,3]
[372217111,1752552666228,-1271.11,0.00023013,3]
[372217112,1752552666238,-460.0,0.00023013,3]
[372217113,1752552666247,-1235.2,0.00023013,3]
[372217114,1752552666257,-726.27,0.00023013,3]
[372217115,1752552666267,-671.4,0.00023013,3]
[372217116,1752552666276,-799.6,0.00023013,3]
[372217117,1752552666286,-2030.22,0.00023013,3]
[372217118,1752552666295,-460.0,0.00023013,3]
[372217119,1752552666304,-467.17341444,0.00023013,3]
[372217120,1752552666314,-460.0,0.00023013,3]
[372217121,1752552666324,-714.23,0.00023013,3]
[372217122,1752552666333,-1996.77,0.00023013,3]
[372217123,1752552666342,-460.0,0.00023013,3]
[372217124,1752552666352,-467.57322438,0.00023013,3]
[372217125,1752552666364,-800.07,0.00023013,3]
[372217126,1752552666373,-3111.48,0.00023013,3]
[372217127,1752552666382,-460.0,0.00023013,3]
[372217128,1752552666391,-1667.58,0.00023013,3]
[372217129,1752552666401,-647.74,0.00023013,3]
[372217130,1752552666410,-460.0,0.00023013,3]
[372217131,1752552666419,-460.0,0.00023013,3]
[372217132,1752552666429,-460.0,0.00023013,3]
[372217133,1752552666439,-460.0,0.00023013,3]
[372217134,1752552666448,-460.0,0.00023013,3]
[372217135,1752552666458,-697.18,0.00023013,3]
[372217136,1752552666550,-971.98,0.00023013,3]
[372217137,1752552666560,-527.96,0.00023013,3]
[372217138,1752552666570,-460.0,0.00023013,3]
[372217139,1752552666579,-460.0,0.00023013,3]
[372217140,1752552666589,-532.76,0.00023013,3]
[372217141,1752552666599,-460.0,0.00023013,3]
[372217142,1752552666608,-567.58,0.00023013,3]
[372217143,1752552666624,-2796.67,0.00023013,3]
[372217144,1752552666635,-460.0,0.00023013,3]
[372217145,1752552666645,-460.0,0.00023013,3]
[372217147,1752552666654,-597.24,0.00023013,3]
[372217148,1752552666664,-460.0,0.00023013,3]
[372217150,1752552666674,-550.6,0.00023013,3]
[372217151,1752552666684,-1302.93,0.00023013,3]
[372217153,1752552666694,-584.18017293,0.00023013,3]
[372217154,1752552666705,-860.81,0.00023013,3]
[372217155,1752552666715,-926.29,0.00023013,3]
[372217156,1752552666726,-335.43509946,0.00023013,3]
[372217157,1752552666735,-3032.76,0.00023013,3]
[372217158,1752552666744,-460.0,0.00023013,3]
[372217159,1752552666754,-471.52,0.00023013,3]
[372217160,1752552666763,-601.9,0.00023013,3]
[372217161,1752552666772,-2582.26,0.00023013,3]
[372217162,1752552666781,-460.0,0.00023013,3]
[372217163,1752552666791,-1525.3,0.00023013,3]
[372217164,1752552666800,-460.0,0.00023013,3]
[372217165,1752552666810,-475.26756817,0.00023013,3]
[372217166,1752552666819,-544.4625363,0.00023013,3]
[372217167,1752552666829,-460.0,0.00023013,3]
[372217168,1752552666838,-1036.34,0.00023013,3]
[372217169,1752552666848,-2092.22,0.00023013,3]
[372217170,1752552666857,-460.0,0.00023013,3]
[372217171,1752552666870,-460.0,0.00023013,3]
[372217172,1752552666879,-460.0,0.00023013,3]
[372217173,1752552666889,-4312.82,0.00023013,3]
[372217174,1752552666899,-777.48,0.00023013,3]
[372217175,1752552666908,-460.0,0.00023013,3]
[372217176,1752552666918,-703.39,0.00023013,3]
[372217177,1752552666927,-637.13,0.00023013,3]
[372217178,1752552666937,-460.0,0.00023013,3]
[372217179,1752552666946,-4816.4,0.00023013,3]
[372217180,1752552666956,-460.0,0.00023013,3]
[372217181,1752552666965,-460.0,0.00023013,3]
[372217182,1752552666975,-1559.52,0.00023013,3]
[372217183,1752552666985,-688.86,0.00023013,3]
[372217184,1752552666994,-1092.22,0.00023013,3]
[372217185,1752552667003,-460.0,0.00023013,3]
[372217186,1752552667013,-1316.19,0.00023013,3]
[372217187,1752552667022,-460.0,0.00023013,3]
[372217188,1752552667032,-511.09,0.00023013,3]
[372217189,1752552667041,-471.0,0.00023014,7]
[372217190,1752552667051,-260.0,0.00023048,2]
[372217191,1752552667060,-523.31,0.0002305,6]
[372217192,1752552667070,-1500.0,0.00023068,2]
[372217193,1752552667080,-1500.0,0.00023068,2]
[372217194,1752552667089,-1004.32701478,0.00023068,2]
[372217195,1752552667099,-1500.0,0.00023068,2]
[372217196,1752552667112,-2714.23219275,0.00023086,2]
[372217197,1752552667121,-815.77640485,0.00023141,8]
[372217198,1752552667130,-523.33,0.0002315,6]
[372217199,1752552667140,-1346.96,0.00023182,3]
[372217200,1752552667150,-2986.95603657,0.00023186,2]
[372217201,1752552667160,-210.8,0.00023189,6]
[372217202,1752552667169,-1500.0,0.00023268,2]
[372217203,1752552667179,-506.56320789,0.00023268,2]
[372217204,1752552667188,-1503.22456947,0.00023268,2]
[372217205,1752552667198,-1003.64036429,0.00023268,2]
[372217206,1752552667207,-174.53596474,0.00023273,2]
[372217207,1752552667217,-815.77640485,0.00023279,8]
[372217208,1752552667226,-460.0,0.00023287,3]
[372217209,1752552667237,-460.0,0.00023287,3]
[372217210,1752552667246,-478.43,0.00023287,3]
[372217211,1752552667255,-460.0,0.00023287,3]
[372217212,1752552667265,-460.0,0.00023287,3]
[372217213,1752552667274,-517.46,0.00023287,3]
[372217214,1752552667283,-460.0,0.00023287,3]
[372217215,1752552667293,-460.0,0.00023287,3]
[372217216,1752552667302,-460.0,0.00023287,3]
[372217217,1752552667312,-576.57,0.00023287,3]
[372217218,1752552667321,-460.0,0.00023287,3]
[372217219,1752552667331,-460.0,0.00023287,3]
[372217220,1752552667341,-460.0,0.00023287,3]
[372217221,1752552667350,-460.0,0.00023287,3]
[372217222,1752552667361,-460.0,0.00023287,3]
[372217223,1752552667370,-460.0,0.00023287,3]
[372217224,1752552667379,-460.0,0.00023287,3]
[372217225,1752552667388,-460.0,0.00023287,3]
[372217226,1752552667398,-228.34029742,0.00023287,3]
[372217227,1752552667407,-460.0,0.00023287,3]
[372217228,1752552667417,-460.0,0.00023287,3]
[372217229,1752552667426,-777.72,0.00023287,3]
[372217230,1752552667435,-460.0,0.00023287,3]
[372217231,1752552667445,-460.0,0.00023287,3]
[372217232,1752552667454,-791.55,0.00023287,3]
[372217233,1752552667464,-460.0,0.00023287,3]
[372217234,1752552667473,-460.0,0.00023287,3]
[372217235,1752552667483,-460.0,0.00023287,3]
[372217236,1752552667493,-460.0,0.00023287,3]
[372217237,1752552667502,-460.0,0.00023287,3]
[372217238,1752552667511,-460.0,0.00023287,3]
[372217239,1752552667521,-519.47,0.00023287,3]
[372217240,1752552667530,-460.0,0.00023287,3]
[372217241,1752552667539,-4953.31,0.00023287,3]